bitfinex/quotes_ETHUSD_20260314
["timestamp","ask_amount","ask_price","bid_price","bid_amount"]
[1773457649303,0.45668175,2097.9,2097.0,0.46134486]
[1773457649304,0.45668175,2097.9,2097.2,0.46134486]
[1773457649497,0.45668175,2097.9,2097.0,0.74678511]
[1773457649498,1.19161703,2098.0,2097.4,0.46134486]
[1773457650794,1.19161703,2098.0,2097.2,0.49999999]
[1773457651097,1.19161703,2098.0,2097.0,0.49999999]
[1773457652511,1.19161703,2098.0,2096.8,0.49999999]
[1773457652823,0.74678511,2097.9,2096.8,0.49999999]
[1773457653518,0.74678511,2097.9,2097.0,0.49999999]
[1773457653718,1.19161703,2098.0,2097.1,0.04768489]
[1773457654929,1.19161703,2098.0,2097.0,0.49999999]
[1773457655534,1.86475092,2097.9,2096.8,1.69226976]
[1773457655699,1.86475092,2097.9,2096.8,0.49999999]
[1773457655700,1.76475092,2097.9,2096.8,0.49999999]
[1773457655904,1.76475092,2097.9,2096.8,1.69225178]
[1773457657218,1.19172466,2097.8,2096.9,0.49999999]
[1773457657619,1.638,2097.7,2097.0,0.04768717]
[1773457657804,1.19172466,2097.8,2097.0,0.49999999]
[1773457659013,1.19161105,2098.0,2097.2,0.49999999]
[1773457659216,1.19161105,2098.0,2097.4,0.49999999]
[1773457659745,1.19161105,2098.0,2097.2,0.49999999]
[1773457659944,1.09161105,2098.0,2097.2,0.49999999]
[1773457661714,1.09161105,2098.0,2097.2,0.50099999]
[1773457662044,0.002,2097.8,2097.2,0.50099999]
[1773457662337,0.002,2097.8,2097.4,0.49999999]
[1773457665243,0.002,2097.8,2097.5,0.49999999]
[1773457668224,0.002,2097.8,2097.6,0.49999999]
[1773457668519,1.9784399,2098.1,2097.6,0.49899999]
[1773457668726,1.8784399,2098.1,2097.5,0.49899999]
[1773457668926,1.8804399,2098.1,2097.5,0.49899999]
[1773457669322,0.002,2098.0,2097.5,0.49899999]
[1773457670136,0.002,2098.0,2097.3,0.47586708]
[1773457670721,0.002,2098.0,2097.2,0.04868262]
[1773457671247,0.002,2098.0,2097.2,0.001]
[1773457671844,0.45278983,2098.0,2097.4,0.48483303]
[1773457672245,1.19166785,2097.9,2097.5,0.0476758]
[1773457672448,1.64444309,2098.0,2097.5,0.53250883]
[1773457672645,1.19165326,2098.0,2097.5,0.48483303]
[1773457673150,1.19165326,2098.0,2097.5,0.49614849]
[1773457673348,1.64444309,2098.0,2097.5,0.49614849]
[1773457673840,1.64444309,2098.0,2097.5,0.53250883]
[1773457674649,5.45328553,2098.1,2097.6,0.48483303]
[1773457674650,1.87842162,2098.1,2097.6,0.48483303]
[1773457676650,1.19166785,2097.9,2097.6,0.48483303]
[1773457676827,0.002,2097.8,2097.6,0.48483303]
[1773457678125,0.002,2097.8,2097.5,0.0476758]
[1773457678455,0.002,2097.8,2097.4,1.67675501]
[1773457679030,0.002,2097.8,2097.5,0.48483303]
[1773457680130,0.002,2097.8,2097.6,0.53250655]
[1773457680350,0.002,2097.8,2097.6,0.04767352]
[1773457680526,0.45478983,2097.8,2097.4,0.48483303]
[1773457680723,0.002,2097.8,2097.4,0.48483303]
[1773457680928,0.002,2097.8,2097.4,1.67678004]
[1773457681246,0.002,2097.8,2097.5,0.48483303]
[1773457682131,0.45478983,2097.8,2097.3,1.67780907]
[1773457682478,0.45478983,2097.8,2097.3,1.19297604]
[1773457682647,0.002,2097.8,2097.4,0.48483303]
[1773457684069,0.002,2097.8,2097.4,1.67674614]
[1773457684359,0.002,2097.8,2097.5,0.48483303]
[1773457687362,0.45478983,2097.8,2097.5,0.48483303]
[1773457687975,0.45278983,2097.7,2097.3,0.001]
[1773457688261,1.64462812,2097.6,2097.2,0.0002]
[1773457689551,1.64462812,2097.6,2097.2,0.48503303]
[1773457691464,1.64462812,2097.6,2097.4,0.001]
[1773457692536,1.19183829,2097.6,2097.4,0.001]
[1773457692735,0.45278983,2097.5,2097.4,0.001]
[1773457693153,0.45278983,2097.5,2097.2,0.0002]
[1773457694346,0.45278983,2097.3,2096.9,0.48483303]
[1773457694550,0.45278983,2097.3,2096.9,1.72583125]
[1773457694736,0.45278983,2097.3,2096.9,1.67814181]
[1773457694936,0.45278983,2097.3,2096.9,1.19330878]
[1773457695137,1.6448224,2097.3,2096.9,1.67814181]
[1773457695433,1.6448224,2097.3,2096.8,1.23997751]
[1773457695434,1.6448224,2097.3,2097.0,1.67814181]
[1773457695643,1.6448224,2097.3,2097.0,0.48483303]
[1773457696179,1.6448224,2097.3,2096.9,1.19330878]
[1773457696355,1.6448224,2097.3,2097.0,1.19330878]
[1773457696557,1.6448224,2097.3,2096.9,1.19330878]
[1773457696954,0.45278983,2097.2,2096.9,1.19330878]
[1773457697163,1.19212245,2097.1,2096.9,1.19330878]
[1773457697373,1.19212245,2097.1,2096.8,0.48483303]
[1773457697678,1.19212245,2097.1,2096.9,1.19330878]
[1773457699258,0.45278983,2097.4,2096.9,1.19330878]
[1773457699459,0.45278983,2097.4,2096.9,1.67814181]
[1773457699657,0.45278983,2097.4,2096.9,0.48483303]
[1773457701374,1.64477491,2097.4,2096.9,1.19220547]
[1773457701548,1.64477491,2097.4,2097.1,0.47059911]
[1773457704553,1.19198508,2097.4,2097.2,1.66390789]
[1773457704750,0.45121265,2097.5,2097.2,0.47059911]
[1773457704960,0.45121265,2097.5,2097.3,1.19330878]
[1773457705164,0.45121265,2097.5,2097.2,0.47059911]
[1773457705684,0.45121265,2097.5,2097.0,1.66277318]
[1773457706085,0.45121265,2097.5,2097.1,0.001]
[1773457706600,0.45321265,2097.2,2097.1,0.001]
[1773457707672,1.19406561,2097.2,2096.7,0.47059911]
[1773457707855,1.69296543,2097.2,2096.7,0.47059911]
[1773457708258,1.69296543,2097.2,2096.8,0.51829083]
[1773457709353,1.69296543,2097.2,2096.8,0.47059911]
[1773457709579,0.45121265,2097.1,2096.8,0.47059911]
[1773457709965,0.45121265,2097.1,2096.6,0.001]
[1773457710165,0.45121265,2097.1,2096.7,0.47059911]
[1773457711095,1.64335968,2097.1,2096.7,0.47059911]
[1773457711265,0.45121265,2097.1,2096.7,0.47059911]
[1773457711466,0.45121265,2097.1,2096.8,0.51829083]
[1773457711667,1.1941067,2097.2,2096.8,0.51829083]
[1773457711966,1.64531935,2097.2,2096.8,0.51829083]
[1773457712576,1.64531743,2097.2,2096.8,0.51829083]
[1773457712886,0.002,2097.2,2096.9,0.47059911]
[1773457713394,0.45321265,2097.2,2096.9,0.47059911]
[1773457715402,1.64532437,2097.2,2096.9,0.47059911]
[1773457715588,1.69301154,2097.2,2096.9,0.47059911]
[1773457718707,1.64532437,2097.2,2096.9,0.47059911]
[1773457720698,1.64532437,2097.2,2097.1,0.001]
[1773457721092,0.002,2097.2,2097.1,0.001]
[1773457721285,0.002,2097.2,2097.1,0.47159911]
[1773457725312,0.002,2097.2,2097.1,0.001]
[1773457728893,0.002,2097.2,2097.1,0.50770303]
[1773457731098,0.002,2097.4,2097.2,0.49762656]
[1773457734288,0.002,2097.4,2097.3,0.49762656]
[1773457735818,0.002,2097.4,2097.3,0.54530691]
[1773457737501,0.002,2097.7,2097.4,0.49762656]
[1773457738004,0.46913936,2097.7,2097.4,0.49762656]
[1773457739798,1.66095535,2097.7,2097.4,0.49762656]
[1773457740326,1.70864252,2097.7,2097.4,0.49762656]
[1773457740615,0.46713936,2097.6,2097.2,0.49762656]
[1773457741532,0.46713936,2097.4,2097.1,0.49862656]
[1773457741731,1.19196024,2097.4,2097.1,0.001]
[1773457741899,0.46713936,2097.3,2097.1,0.001]
[1773457742607,0.46713936,2097.4,2097.1,0.49862656]
[1773457742795,1.65898583,2097.6,2097.2,0.54530918]
[1773457743124,4.76915667,2097.7,2097.2,0.54530918]
[1773457743125,0.002,2097.7,2097.2,0.54530918]
[1773457743826,0.002,2097.7,2097.4,0.49762656]
[1773457744025,0.002,2097.7,2097.3,1.19200877]
[1773457744026,0.46713936,2097.6,2097.1,0.001]
[1773457744222,0.46713936,2097.4,2097.1,0.001]
[1773457744422,0.46713936,2097.4,2097.1,0.54631145]
[1773457744808,0.46713936,2097.6,2097.2,0.49762656]
[1773457745146,0.04968717,2097.7,2097.3,0.54530691]
[1773457745639,0.002,2097.7,2097.3,0.54530691]
[1773457746137,1.19378147,2097.7,2097.3,0.54530691]
[1773457746430,0.002,2097.7,2097.3,1.73730956]
[1773457746622,0.002,2097.7,2097.4,0.49762656]
[1773457747520,0.46913936,2097.7,2097.2,1.68964764]
[1773457747836,0.002,2097.4,2097.3,0.49762656]
[1773457748439,0.002,2097.4,2097.3,1.68963533]
[1773457748636,0.002,2097.4,2097.3,1.73731568]
[1773457749552,0.002,2097.4,2097.3,1.68963533]
[1773457749846,0.002,2097.4,2097.3,1.73731568]
[1773457751351,0.002,2097.4,2097.3,1.68963533]
[1773457751917,0.002,2097.4,2097.3,1.73731568]
[1773457753125,0.002,2097.4,2097.3,0.49762656]
[1773457753521,0.002,2097.4,2097.3,1.68963533]
[1773457753832,0.002,2097.4,2097.3,0.49762656]
[1773457758251,0.002,2097.7,2097.4,0.49762656]
[1773457758555,1.19378509,2097.7,2097.5,0.54530236]
[1773457759652,1.19378509,2097.7,2097.5,0.0476758]
[1773457759952,0.46713936,2097.6,2097.2,0.49762656]
[1773457760155,0.46713936,2097.6,2097.1,1.69071957]
[1773457760353,0.46713936,2097.6,2097.3,0.001]
[1773457761253,1.66019083,2097.5,2097.3,0.001]
[1773457764158,0.46629572,2097.4,2097.3,0.001]
[1773457773053,0.46629572,2097.3,2097.1,0.001]
[1773457775286,1.65836133,2097.2,2097.1,0.001]
[1773457776537,0.46629572,2097.1,2096.9,0.001]
[1773457777362,1.19206561,2097.2,2096.9,0.001]
[1773457777564,1.65836133,2097.2,2096.9,0.001]
[1773457778569,0.46629572,2097.2,2096.9,0.46921716]
[1773457779769,1.19201305,2097.3,2096.9,1.66140458]
[1773457780069,0.04768717,2097.3,2097.0,0.46821716]
[1773457780649,1.19198743,2097.4,2097.0,0.46821716]
[1773457781469,0.46629572,2097.4,2097.0,1.66037003]
[1773457781684,0.002,2097.5,2097.1,0.46821716]
[1773457781917,0.04968717,2097.5,2097.1,0.46821716]
[1773457782341,0.002,2097.5,2097.1,0.46821716]
[1773457783546,0.002,2097.5,2097.3,0.46821716]
[1773457783746,0.002,2097.7,2097.3,0.46821716]
[1773457786085,0.002,2097.7,2097.5,0.46821716]
[1773457786387,0.46829572,2097.7,2097.3,1.66022296]
[1773457786868,0.002,2097.7,2097.4,0.49921709]
[1773457788562,0.002,2097.7,2097.4,1.69116592]
[1773457788875,1.71951338,2098.0,2097.5,0.49921709]
[1773457789764,1.71949302,2098.0,2097.5,0.49921709]
[1773457790690,1.19361725,2098.0,2097.7,0.49921709]
[1773457790990,1.71948773,2098.0,2097.5,1.69108757]
[1773457791190,1.71948773,2098.0,2097.6,0.45453374]
[1773457791867,0.002,2098.0,2097.6,0.45453374]
[1773457792263,0.48968319,2098.0,2097.6,0.45453374]
[1773457793798,0.48968319,2098.0,2097.6,1.64634684]
[1773457794586,0.002,2098.0,2097.7,0.45453374]
[1773457796401,0.002,2098.0,2097.7,0.50220499]
[1773457796578,0.002,2098.0,2097.8,0.45453374]
[1773457797795,0.6868413,2098.1,2097.9,0.45453374]
[1773457800391,1.19161105,2098.0,2097.7,0.45453374]
[1773457800590,1.67929424,2098.0,2097.7,0.45453374]
[1773457800799,0.48768319,2098.0,2097.7,0.45453374]
[1773457800993,0.48768319,2098.0,2097.6,0.45453374]
[1773457801392,0.28768319,2098.0,2097.6,0.45453374]
[1773457801915,1.19166785,2097.9,2097.3,1.19297417]
[1773457802109,0.38156842,2097.8,2097.4,0.45453374]
[1773457802296,1.57323627,2097.9,2097.6,0.45453374]
[1773457802477,1.19166785,2097.9,2097.6,0.45453374]
[1773457802678,1.57323627,2097.9,2097.6,0.45453374]
[1773457803090,1.57323627,2097.9,2097.7,0.001]
[1773457803497,0.002,2097.8,2097.7,0.001]
[1773457804113,0.002,2097.8,2097.7,0.45553374]
[1773457804920,0.38356842,2097.8,2097.7,0.001]
[1773457805807,0.38356842,2097.8,2097.5,0.001]
[1773457806004,1.57334989,2097.7,2097.5,0.001]
[1773457809392,0.38156842,2097.6,2097.3,0.001]
[1773457811215,0.38056842,2097.6,2097.3,0.001]
[1773457813087,0.38056842,2097.4,2097.3,0.001]
[1773457814597,0.38056842,2097.3,2097.0,0.001]
[1773457816020,1.19206561,2097.2,2097.0,0.001]
[1773457822433,1.23975278,2097.2,2097.0,0.001]
[1773457822725,1.6203212,2097.2,2097.0,0.001]
[1773457822931,0.38056842,2097.1,2097.0,0.001]
[1773457823499,1.23975278,2097.2,2097.0,0.001]
[1773457823823,0.38056842,2097.1,2096.9,0.001]
[1773457824402,1.1921793,2097.0,2096.9,0.001]
[1773457827230,1.1921793,2097.0,2096.8,0.47627649]
[1773457827231,1.57274772,2097.0,2096.8,0.001]
[1773457828331,1.62043489,2097.0,2096.8,0.001]
[1773457830009,1.57274772,2097.0,2096.8,0.001]
[1773457830339,1.62043489,2097.0,2096.8,0.001]
[1773457832435,1.24186647,2097.0,2096.8,0.001]
[1773457832930,1.24186647,2097.0,2096.8,0.47627649]
[1773457835951,0.04968717,2097.0,2096.8,0.47627649]
[1773457836134,1.1941843,2097.0,2096.8,0.47627649]
[1773457836454,1.24187147,2097.0,2096.8,0.47627649]
[1773457838143,1.24187147,2097.0,2096.8,0.001]
[1773457840527,1.62243989,2097.0,2096.8,0.001]
[1773457842058,1.62243989,2097.0,2096.5,0.001]
[1773457842059,0.38056842,2096.9,2096.5,0.001]
[1773457842229,1.98739127,2097.0,2096.5,0.001]
[1773457842230,0.42825559,2096.8,2096.5,0.001]
[1773457842636,0.42825559,2096.8,2096.5,0.47627649]
[1773457842929,1.1941843,2097.0,2096.6,0.47527649]
[1773457843436,0.002,2097.0,2096.6,0.47527649]
[1773457846859,0.002,2096.8,2096.6,0.47527649]
[1773457851860,0.002,2097.0,2096.6,0.46327363]
[1773457852046,0.002,2097.0,2096.6,0.5109699]
[1773457853459,0.002,2097.0,2096.7,0.46327363]
[1773457855464,1.1941793,2097.0,2096.7,0.46327363]
[1773457856991,0.002,2097.0,2096.7,0.46327363]
[1773457857747,0.002,2097.2,2096.5,0.001]
[1773457857955,0.002,2097.2,2096.7,0.46327363]
[1773457858966,0.002,2097.2,2096.8,0.04769172]
[1773457859268,0.002,2097.2,2096.9,0.46327363]
[1773457860075,0.002,2097.2,2097.1,0.46327363]
[1773457860643,0.002,2097.2,2096.9,1.65546721]
[1773457860876,0.42592225,2097.2,2096.8,0.001]
[1773457861068,0.42592225,2097.2,2096.8,0.46427363]
[1773457861069,0.002,2097.0,2096.8,0.46427363]
[1773457861372,0.002,2097.0,2096.8,1.70425812]
[1773457861569,0.002,2097.0,2096.9,0.46327363]
[1773457861984,0.002,2097.0,2096.9,1.65550978]
[1773457862365,0.002,2097.2,2096.9,1.19223615]
[1773457862567,0.002,2097.2,2097.0,0.46327363]
[1773457864777,0.002,2097.2,2097.0,0.5109608]
[1773457864977,0.002,2097.2,2097.1,0.46327363]
[1773457867377,0.002,2097.2,2097.0,1.23986255]
[1773457867563,0.002,2097.2,2097.0,0.04768717]
[1773457867764,0.002,2097.2,2096.9,1.65546624]
[1773457867962,0.002,2097.2,2097.0,0.46327363]
[1773457868158,1.19390551,2097.5,2097.0,0.46327363]
[1773457868159,0.42592225,2097.5,2097.0,0.46327363]
[1773457868377,1.61782313,2097.5,2097.0,0.46327363]
[1773457868688,0.42592225,2097.4,2097.0,0.46327363]
[1773457868893,0.42592225,2097.4,2096.9,1.19219261]
[1773457869065,0.42592225,2097.4,2096.9,1.65546624]
[1773457869265,1.61789924,2097.4,2096.9,0.46327363]
[1773457871097,0.42592225,2097.3,2096.9,0.46327363]
[1773457872016,1.61981888,2097.5,2097.1,0.46327363]
[1773457872354,0.42592225,2097.4,2097.1,0.46327363]
[1773457873591,0.42592225,2097.4,2097.2,0.001]
[1773457874094,0.002,2097.3,2097.2,0.001]
[1773457875299,0.42792225,2097.3,2097.2,0.001]
[1773457875591,1.61993102,2097.3,2097.2,0.001]
[1773457876997,0.002,2097.3,2097.2,0.001]
[1773457879520,0.002,2097.3,2097.2,0.51195625]
[1773457879692,0.002,2097.3,2097.2,0.46427363]
[1773457881396,0.002,2097.3,2097.2,0.001]
[1773457883591,0.37792225,2097.3,2097.2,0.001]
[1773457887197,0.002,2097.3,2097.2,0.48068654]
[1773457889004,0.002,2097.3,2097.2,0.001]
[1773457890395,0.37792225,2097.3,2097.2,0.001]
[1773457891878,0.002,2097.3,2097.2,0.001]
[1773457897803,0.37792225,2097.3,2097.1,0.001]
[1773457898690,1.5699403,2097.3,2097.1,0.001]
[1773457899279,1.19401805,2097.3,2097.1,0.001]
[1773457899478,0.37492225,2097.2,2097.1,0.001]
[1773457900208,1.19401862,2097.3,2097.1,0.001]
[1773457900407,0.37692225,2097.3,2097.1,0.001]
[1773457900704,0.002,2097.3,2097.1,0.48068654]
[1773457902309,0.002,2097.3,2097.2,0.47968654]
[1773457908024,0.002,2097.6,2097.4,0.46657778]
[1773457914012,0.002,2097.6,2097.2,1.1920198]
[1773457914334,0.002,2097.6,2097.3,0.46025046]
[1773457914512,0.32892225,2097.6,2097.3,0.46025046]
[1773457915720,1.52076076,2097.6,2097.3,0.46025046]
[1773457916037,0.002,2097.4,2097.3,0.46025046]
[1773457922046,0.002,2097.4,2097.2,0.46025046]
[1773457922338,0.002,2097.4,2097.1,1.19308723]
[1773457922524,0.002,2097.4,2097.2,0.46025046]
[1773457923027,0.002,2097.4,2097.2,1.19204609]
[1773457923217,0.002,2097.4,2097.3,0.46025046]
[1773457923842,0.002,2097.4,2097.1,0.001]
[1773457923843,0.32892225,2097.4,2097.1,0.001]
[1773457926437,0.32892225,2097.4,2097.1,0.46125046]
[1773457929153,0.32892225,2097.4,2097.3,0.001]
[1773457930654,0.002,2097.4,2097.3,0.001]
[1773457931727,0.002,2097.4,2097.3,0.46125046]
[1773457933741,0.002,2097.6,2097.4,0.46025046]
[1773457933942,0.0012,2097.6,2097.4,0.46025046]
[1773457934148,0.0012,2097.6,2097.4,0.45945046]
[1773457935959,0.0012,2097.6,2097.4,1.65136171]
[1773457937859,0.0012,2097.6,2097.4,1.19191125]
[1773457938063,0.0012,2097.6,2097.5,0.46025046]
[1773457944073,0.0012,2097.6,2097.5,1.65214557]
[1773457944871,0.0012,2097.6,2097.5,0.46025046]
[1773457947269,0.002,2097.8,2097.6,0.49124826]
[1773457949354,0.002,2097.8,2097.7,0.49124826]
[1773457952177,0.002,2097.8,2097.7,1.68302973]
[1773457953486,0.002,2097.8,2097.3,0.001]
[1773457953656,0.002,2097.8,2097.3,1.68422365]
[1773457953657,0.33172225,2097.8,2097.3,1.68422365]
[1773457953856,0.33172225,2097.8,2097.3,1.731904]
[1773457954657,0.32972225,2097.7,2097.3,1.731904]
[1773457955876,0.32972225,2097.7,2097.5,0.001]
[1773457956582,0.33172225,2097.7,2097.5,0.001]
[1773457958980,0.23172225,2097.7,2097.5,0.001]
[1773457959561,0.002,2097.7,2097.5,0.49224826]
[1773457962069,0.002,2097.9,2097.7,0.49124826]
[1773457962769,1.19371011,2097.9,2097.5,0.49224826]
[1773457963162,1.19371011,2097.9,2097.6,0.49124826]
[1773457966782,0.002,2097.9,2097.6,1.19182122]
[1773457966987,0.002,2097.9,2097.7,0.47284729]
[1773457970983,1.87843976,2098.1,2097.7,0.47284729]
[1773457971363,2.11216201,2098.1,2097.7,0.47284729]
[1773457971570,0.23372225,2098.0,2097.6,0.48056097]
[1773457971769,0.23372225,2098.0,2097.5,0.001]
[1773457972090,1.4253901,2097.9,2097.5,0.48156097]
[1773457972287,0.23372225,2097.8,2097.4,0.48056097]
[1773457973593,0.23372225,2097.8,2097.3,0.001]
[1773457974099,0.47095198,2097.6,2097.3,0.001]
[1773457974258,0.47095198,2097.6,2097.3,0.48156097]
[1773457976266,5.23795991,2097.8,2097.4,0.48056097]
[1773457976458,0.47095198,2097.8,2097.4,0.48056097]
[1773457978173,0.47095198,2097.8,2097.5,0.48056097]
[1773457978494,1.19169094,2097.9,2097.5,0.48056097]
[1773457979471,0.47095198,2097.8,2097.4,0.48056097]
[1773457979681,0.47095198,2097.8,2097.3,0.001]
[1773457980273,0.47095198,2097.6,2097.3,0.001]
[1773457981966,0.47095198,2097.6,2097.1,0.001]
[1773457982496,0.47095198,2097.4,2097.1,0.001]
[1773457984898,0.47095198,2097.4,2097.1,0.48156097]
[1773457986074,1.19189511,2097.5,2097.1,0.48156097]
[1773457987005,0.47095198,2097.5,2097.1,0.48156097]
[1773457988909,1.66288082,2097.5,2097.1,0.48156097]
[1773457992090,0.47095198,2097.4,2097.1,0.48156097]
[1773457993712,0.47095198,2097.4,2097.1,1.673682]
[1773457993910,1.66280588,2097.6,2097.2,0.48056097]
[1773457995377,1.19382774,2097.7,2097.3,0.48156097]
[1773457995786,1.66477972,2097.7,2097.3,0.48156097]
[1773457995981,1.66473958,2097.7,2097.4,0.48056097]
[1773457996405,1.1937876,2097.7,2097.3,0.001]
[1773457996606,0.47095198,2097.6,2097.3,0.48156097]
[1773457997805,0.47095198,2097.6,2097.3,0.001]
[1773457997993,1.19189511,2097.5,2097.1,0.001]
[1773457998191,0.47095198,2097.4,2097.1,0.48156097]
[1773457998396,1.19188001,2097.6,2097.1,0.48156097]
[1773457998807,1.66283199,2097.6,2097.1,0.48156097]
[1773457999726,0.47095198,2097.6,2097.1,0.48156097]
[1773458001222,1.66282798,2097.6,2097.1,1.67364852]
[1773458001515,1.66282798,2097.6,2097.2,0.48782635]
[1773458003306,0.47095198,2097.6,2097.2,1.67986977]
[1773458003488,1.19382683,2097.7,2097.3,0.48782635]
[1773458003689,1.65694196,2097.7,2097.3,0.48782635]
[1773458005821,0.46311513,2097.6,2097.3,0.48782635]
[1773458007920,0.002,2097.7,2097.3,0.48782635]
[1773458008521,0.002,2097.7,2097.3,0.48882635]
[1773458008722,0.002,2097.4,2097.3,0.48882635]
[1773458009623,0.002,2097.4,2097.3,1.68083512]
[1773458009819,0.002,2097.6,2097.4,1.19194636]
[1773458010024,0.002,2097.6,2097.5,0.48782635]
[1773458014024,1.19369108,2097.9,2097.7,0.48782635]
[1773458017531,1.19369108,2097.9,2097.5,0.48782635]
[1773458021250,1.19369108,2097.9,2097.7,0.001]
[1773458023143,1.65680621,2097.9,2097.7,0.001]
[1773458027038,0.49481963,2097.8,2097.5,0.001]
[1773458027240,0.49481963,2097.8,2097.3,0.001]
[1773458029262,0.49481963,2097.6,2097.3,0.46862761]
[1773458029432,1.6866011,2097.7,2097.3,0.46862761]
[1773458029835,1.19178147,2097.7,2097.3,0.46862761]
[1773458030164,0.49481963,2097.6,2097.3,0.46862761]
[1773458031539,1.68670101,2097.6,2097.3,0.46862761]
[1773458034666,1.68670101,2097.6,2097.5,0.001]
[1773458037221,0.48139822,2097.5,2097.2,0.001]
[1773458038872,1.19195194,2097.4,2097.2,0.001]
[1773458039178,0.48139822,2097.3,2097.2,0.001]
[1773458041152,1.67340699,2097.3,2097.2,0.001]
[1773458042273,1.19200877,2097.3,2097.2,0.001]
[1773458046985,1.67340699,2097.3,2097.2,0.001]
[1773458051994,1.67340699,2097.3,2097.1,0.001]
[1773458055491,0.48139822,2097.1,2096.9,0.001]
[1773458055664,0.48139822,2097.1,2096.8,0.001]
[1773458056870,1.67357752,2097.0,2096.7,0.001]
[1773458059197,1.67357752,2097.0,2096.7,0.48910108]
[1773458059995,1.19195194,2097.4,2096.9,0.48810108]
[1773458060503,1.67335016,2097.4,2096.9,0.48810108]
[1773458060801,0.48139822,2097.3,2096.9,0.48810108]
[1773458061010,0.48139822,2097.3,2096.9,0.48910108]
[1773458061499,0.002,2097.1,2096.9,0.48910108]
[1773458065814,0.002,2097.3,2097.0,1.68529637]
[1773458065981,0.002,2097.3,2097.1,0.49311707]
[1773458067336,1.64934878,2097.5,2097.0,0.49311707]
[1773458067337,0.002,2097.5,2097.0,0.49311707]
[1773458067495,0.002,2097.5,2097.2,0.49311707]
[1773458069942,0.002,2097.5,2097.4,0.49311707]
[1773458071321,0.002,2097.5,2097.0,4.76848981]
[1773458071322,0.002,2097.5,2097.1,0.49311707]
[1773458071726,0.45744087,2097.5,2097.1,0.49311707]
[1773458072338,0.45744087,2097.5,2097.1,1.68520993]
[1773458072508,0.45744087,2097.5,2097.2,0.49311707]
[1773458074412,0.002,2097.3,2097.2,0.49311707]
[1773458076734,1.19387004,2097.6,2097.2,0.54079969]
[1773458076735,0.002,2097.6,2097.2,0.54079969]
[1773458077730,0.002,2097.6,2097.2,0.49311707]
[1773458079246,0.002,2097.6,2097.4,0.49311707]
[1773458080847,0.45744087,2097.6,2097.2,0.49311707]
[1773458081251,0.45744087,2097.6,2097.2,1.68513795]
[1773458081660,0.45744087,2097.6,2097.3,0.49311707]
[1773458082872,0.002,2097.6,2097.3,0.49311707]
[1773458083372,0.002,2097.6,2097.3,1.19199551]
[1773458083568,0.002,2097.6,2097.4,0.49311707]
[1773458085564,0.002,2097.6,2097.4,1.68505486]
[1773458086344,0.002,2097.8,2097.5,0.46343409]
[1773458086575,0.002,2098.0,2097.5,0.46343409]
[1773458086766,1.68191532,2098.0,2097.5,0.46343409]
[1773458086967,0.48829864,2097.9,2097.5,0.46343409]
[1773458087185,0.48829864,2097.9,2097.0,0.46343409]
[1773458087383,0.48829864,2097.9,2097.1,0.46343409]
[1773458087585,0.48829864,2097.7,2097.4,0.001]
[1773458088575,0.002,2097.6,2097.4,0.001]
[1773458089075,0.49029864,2097.6,2097.4,0.001]
[1773458091398,0.002,2097.6,2097.4,0.45591795]
[1773458091786,0.002,2097.6,2097.5,0.45491795]
[1773458096771,0.002,2097.6,2097.4,0.001]
[1773458096974,0.002,2097.6,2097.4,0.45591795]
[1773458097581,0.002,2097.6,2097.5,0.45491795]
[1773458098503,0.002,2097.6,2097.4,0.001]
[1773458098711,0.45989374,2097.6,2097.4,0.001]
[1773458102721,0.002,2097.6,2097.4,0.50359602]
[1773458103018,0.002,2097.9,2097.5,0.45491795]
[1773458105428,0.002,2097.9,2097.7,0.45491795]
[1773458107233,0.002,2097.9,2097.8,1.19172466]
[1773458107401,0.002,2097.9,2097.8,1.64664261]
[1773458111236,0.6868413,2098.1,2097.8,1.19172466]
[1773458111431,0.6868413,2098.1,2097.9,0.45491795]
[1773458115153,0.6888413,2098.1,2097.9,0.45491795]
[1773458115750,0.6888413,2098.1,2097.8,1.19172466]
[1773458115929,0.6888413,2098.1,2097.8,1.64664261]
[1773458116256,1.14673504,2098.1,2097.8,1.64664261]
[1773458116548,0.6888413,2098.1,2097.9,0.45491795]
[1773458118060,0.6888413,2098.1,2097.9,1.6465745]
[1773458121540,0.002,2098.4,2098.0,0.45932875]
[1773458121740,0.47120267,2098.4,2098.0,0.50699319]
[1773458122860,0.002,2098.4,2098.1,0.45932875]
[1773458125540,0.002,2098.4,2098.2,0.45932875]
[1773458130185,0.47120267,2098.4,2098.1,1.19253435]
[1773458130760,0.47120267,2098.4,2098.1,1.69952527]
[1773458130964,0.47120267,2098.4,2098.2,0.45932875]
[1773458130965,0.002,2098.4,2098.2,0.45932875]
[1773458131208,0.46920267,2098.6,2098.2,0.45932875]
[1773458131378,0.46920267,2098.6,2098.1,0.001]
[1773458131585,0.46920267,2098.6,2098.1,1.65187933]
[1773458131768,0.46920267,2098.6,2098.1,0.46032875]
[1773458132484,0.46920267,2098.4,2098.1,0.001]
[1773458132684,0.46920267,2098.5,2098.1,0.001]
[1773458133259,0.46920267,2098.5,2098.2,0.45932875]
[1773458133585,0.46920267,2098.5,2098.2,0.50698864]
[1773458134079,1.98139311,2098.7,2098.2,0.45932875]
[1773458134482,1.51219044,2098.7,2098.2,0.45932875]
[1773458134776,0.32095854,2098.7,2098.4,0.45932875]
[1773458135086,0.41920267,2098.6,2098.2,1.65080392]
[1773458136284,0.41920267,2098.6,2098.2,0.45932875]
[1773458136685,0.41920267,2098.6,2098.1,1.65187698]
[1773458136890,0.46920267,2098.5,2098.1,1.65187698]
[1773458137292,0.46920267,2098.5,2098.1,0.46032875]
[1773458137791,0.46920267,2098.5,2098.1,1.69953962]
[1773458138368,0.46920267,2098.5,2098.1,0.50799092]
[1773458139275,1.66053427,2098.5,2098.1,1.69954343]
[1773458140465,0.46920267,2098.5,2098.1,1.69954343]
[1773458141970,0.46920267,2098.5,2098.1,0.50799092]
[1773458142194,0.46920267,2098.5,2098.3,0.001]
[1773458142574,0.002,2098.4,2098.3,0.001]
[1773458144496,0.47120267,2098.6,2098.3,0.46032875]
[1773458144880,0.47120267,2098.6,2098.3,0.001]
[1773458144881,0.46920267,2098.6,2098.3,0.001]